[Event "Titled Tuesday Blitz October 04 Late 2022"]
[White "Andreikin, Dmitry"]
[Black "Nozdrachev, Leonid"]
[WhiteFideId "4158814"]
[BlackFideId "24113433"]
[WhiteElo "2736"]
[BlackElo "2249"]
[Result "1-0"]
[Round "01"]
[TimeControl "180+1"]
[Date "2022.10.04"]
[WhiteClock "0:01:58"]
[BlackClock "0:00:40"]

1. Nf3 {[%clk 0:03:00]}  d5 {[%clk 0:02:54]} 2. g3 {[%clk 0:03:00]}  Bg4 {[%clk 0:02:45]} 3. Bg2 {[%clk 0:03:00]}  e6 {[%clk 0:02:44]} 4. O-O {[%clk 0:02:59]}  Bd6 {[%clk 0:02:41]} 5. c4 {[%clk 0:02:58]}  c6 {[%clk 0:02:39]} 6. Qb3 {[%clk 0:02:52]}  Qb6 {[%clk 0:02:37]} 7. Qc2 {[%clk 0:02:52]}  Nf6 {[%clk 0:02:34]} 8. d4 {[%clk 0:02:49]}  Qd8 {[%clk 0:02:12]} 9. Nbd2 {[%clk 0:02:45]}  O-O {[%clk 0:02:11]} 10. e4 {[%clk 0:02:43]}  dxe4 {[%clk 0:02:08]} 11. Nxe4 {[%clk 0:02:44]}  Nxe4 {[%clk 0:02:08]} 12. Qxe4 {[%clk 0:02:44]}  Bf5 {[%clk 0:02:08]} 13. Qe2 {[%clk 0:02:44]}  Nd7 {[%clk 0:02:00]} 14. Rd1 {[%clk 0:02:44]}  Nf6 {[%clk 0:01:58]} 15. Ne5 {[%clk 0:02:40]}  Nd7 {[%clk 0:01:49]} 16. g4 {[%clk 0:02:19]}  Bg6 {[%clk 0:01:44]} 17. h4 {[%clk 0:02:19]}  Qxh4 {[%clk 0:01:12]} 18. Nxd7 {[%clk 0:02:18]}  Qh2+ {[%clk 0:01:11]} 19. Kf1 {[%clk 0:02:18]}  Rfd8 {[%clk 0:01:08]} 20. Ne5 {[%clk 0:02:16]}  Bxe5 {[%clk 0:01:06]} 21. dxe5 {[%clk 0:02:16]}  Rxd1+ {[%clk 0:01:00]} 22. Qxd1 {[%clk 0:02:17]}  Qxe5 {[%clk 0:00:59]} 23. Kg1 {[%clk 0:02:17]}  h5 {[%clk 0:00:54]} 24. gxh5 {[%clk 0:02:11]}  Bxh5 {[%clk 0:00:55]} 25. Qd2 {[%clk 0:02:11]}  Qf5 {[%clk 0:00:51]} 26. Qg5 {[%clk 0:02:07]}  Qxg5 {[%clk 0:00:48]} 27. Bxg5 {[%clk 0:02:06]}  f6 {[%clk 0:00:49]} 28. Be3 {[%clk 0:02:06]}  Rd8 {[%clk 0:00:43]} 29. Bxa7 {[%clk 0:02:03]}  Rd2 {[%clk 0:00:43]} 30. b4 {[%clk 0:02:03]}  Rb2 {[%clk 0:00:42]} 31. b5 {[%clk 0:01:58]}  cxb5 {[%clk 0:00:40]} 32. c5 {[%clk 0:01:58]} 1-0


[Site "https://www.chess.com"]

[Event "Titled Tuesday Blitz October 04 Late 2022"]
[White "Araujo Sanchez, Josue"]
[Black "Jobava, Baadur"]
[WhiteFideId "6416896"]
[BlackFideId "13601520"]
[WhiteElo "2370"]
[BlackElo "2582"]
[Result "0-1"]
[Round "01"]
[TimeControl "180+1"]
[Date "2022.10.04"]
[WhiteClock "0:01:13"]
[BlackClock "0:02:07"]

1. c4 {[%clk 0:02:57]}  c6 {[%clk 0:02:59]} 2. Nc3 {[%clk 0:02:55]}  d5 {[%clk 0:03:00]} 3. d4 {[%clk 0:02:55]}  Nf6 {[%clk 0:03:01]} 4. Nf3 {[%clk 0:02:54]}  dxc4 {[%clk 0:03:01]} 5. e3 {[%clk 0:02:54]}  b5 {[%clk 0:03:00]} 6. a4 {[%clk 0:02:54]}  b4 {[%clk 0:03:01]} 7. Na2 {[%clk 0:02:53]}  b3 {[%clk 0:02:59]} 8. Nc3 {[%clk 0:02:49]}  Ba6 {[%clk 0:02:59]} 9. Ne5 {[%clk 0:02:49]}  e6 {[%clk 0:02:59]} 10. Bxc4 {[%clk 0:02:45]}  Bxc4 {[%clk 0:03:00]} 11. Nxc4 {[%clk 0:02:44]}  c5 {[%clk 0:03:00]} 12. O-O {[%clk 0:02:30]}  Nc6 {[%clk 0:02:58]} 13. Ne5 {[%clk 0:02:06]}  Nxe5 {[%clk 0:02:54]} 14. dxe5 {[%clk 0:02:06]}  Qxd1 {[%clk 0:02:55]} 15. Rxd1 {[%clk 0:02:06]}  Nd7 {[%clk 0:02:56]} 16. f4 {[%clk 0:02:01]}  c4 {[%clk 0:02:52]} 17. Kf2 {[%clk 0:01:55]}  Nc5 {[%clk 0:02:51]} 18. Ke2 {[%clk 0:01:51]}  Nd3 {[%clk 0:02:45]} 19. Rb1 {[%clk 0:01:49]}  Bb4 {[%clk 0:02:43]} 20. Nb5 {[%clk 0:01:48]}  Ke7 {[%clk 0:02:42]} 21. Bd2 {[%clk 0:01:46]}  a5 {[%clk 0:02:39]} 22. Bc3 {[%clk 0:01:40]}  Rhd8 {[%clk 0:02:39]} 23. Rd2 {[%clk 0:01:39]}  Rd7 {[%clk 0:02:33]} 24. Rbd1 {[%clk 0:01:38]}  Rad8 {[%clk 0:02:33]} 25. Bxb4+ {[%clk 0:01:34]}  axb4 {[%clk 0:02:33]} 26. Nd4 {[%clk 0:01:35]}  Rxd4 {[%clk 0:02:29]} 27. exd4 {[%clk 0:01:34]}  Nxf4+ {[%clk 0:02:30]} 28. Kf3 {[%clk 0:01:31]}  Nd5 {[%clk 0:02:31]} 29. Rc1 {[%clk 0:01:30]}  c3 {[%clk 0:02:31]} 30. Rd3 {[%clk 0:01:27]}  Ra8 {[%clk 0:02:22]} 31. Ra1 {[%clk 0:01:24]}  Ra5 {[%clk 0:02:10]} 32. g3 {[%clk 0:01:19]}  Kd7 {[%clk 0:02:08]} 33. Ke2 {[%clk 0:01:13]}  cxb2 {[%clk 0:02:07]} 0-1


[Site "https://www.chess.com"]

[Event "Titled Tuesday Blitz October 04 Late 2022"]
[White "Duda, Jan-Krzysztof"]
[Black "Pert, Richard G"]
[WhiteFideId "1170546"]
[BlackFideId "404748"]
[WhiteElo "2779"]
[BlackElo "2441"]
[Result "1-0"]
[Round "01"]
[TimeControl "180+1"]
[Date "2022.10.04"]
[WhiteClock "0:01:29"]
[BlackClock "0:00:06"]

1. Nf3 {[%clk 0:03:00]}  d5 {[%clk 0:02:59]} 2. e3 {[%clk 0:03:01]}  Nf6 {[%clk 0:02:59]} 3. c4 {[%clk 0:03:01]}  e6 {[%clk 0:02:59]} 4. Nc3 {[%clk 0:03:01]}  c6 {[%clk 0:03:00]} 5. b3 {[%clk 0:03:00]}  Bd6 {[%clk 0:03:00]} 6. Bb2 {[%clk 0:03:01]}  O-O {[%clk 0:03:00]} 7. Be2 {[%clk 0:03:00]}  e5 {[%clk 0:02:57]} 8. cxd5 {[%clk 0:02:59]}  cxd5 {[%clk 0:02:58]} 9. Nb5 {[%clk 0:03:00]}  Nc6 {[%clk 0:02:58]} 10. Nxd6 {[%clk 0:02:59]}  Qxd6 {[%clk 0:02:59]} 11. d4 {[%clk 0:02:56]}  e4 {[%clk 0:02:53]} 12. Ne5 {[%clk 0:02:53]}  Be6 {[%clk 0:02:34]} 13. Nxc6 {[%clk 0:02:46]}  Qxc6 {[%clk 0:02:29]} 14. O-O {[%clk 0:02:47]}  Rac8 {[%clk 0:02:22]} 15. Ba3 {[%clk 0:02:45]}  Rfe8 {[%clk 0:02:19]} 16. Rc1 {[%clk 0:02:46]}  Qd7 {[%clk 0:02:18]} 17. h3 {[%clk 0:02:44]}  h6 {[%clk 0:02:12]} 18. Qd2 {[%clk 0:02:44]}  Bxh3 {[%clk 0:01:59]} 19. gxh3 {[%clk 0:02:43]}  Qxh3 {[%clk 0:02:00]} 20. Rxc8 {[%clk 0:02:42]}  Rxc8 {[%clk 0:01:58]} 21. Rc1 {[%clk 0:02:39]}  Re8 {[%clk 0:01:58]} 22. Bd6 {[%clk 0:02:36]}  Re6 {[%clk 0:01:46]} 23. Bg3 {[%clk 0:02:35]}  h5 {[%clk 0:01:40]} 24. Qd1 {[%clk 0:02:32]}  g5 {[%clk 0:01:30]} 25. Be5 {[%clk 0:02:26]}  Qf5 {[%clk 0:00:56]} 26. Rc7 {[%clk 0:02:08]}  g4 {[%clk 0:00:54]} 27. Rxb7 {[%clk 0:02:01]}  h4 {[%clk 0:00:53]} 28. Rxa7 {[%clk 0:02:00]}  g3 {[%clk 0:00:47]} 29. fxg3 {[%clk 0:01:58]}  Rxe5 {[%clk 0:00:43]} 30. dxe5 {[%clk 0:01:53]}  Qxe5 {[%clk 0:00:44]} 31. Qf1 {[%clk 0:01:51]}  Kf8 {[%clk 0:00:24]} 32. Qf4 {[%clk 0:01:46]}  Qc3 {[%clk 0:00:13]} 33. Ra8+ {[%clk 0:01:43]}  Kg7 {[%clk 0:00:12]} 34. Qg5+ {[%clk 0:01:43]}  Kh7 {[%clk 0:00:12]} 35. Qxh4+ {[%clk 0:01:41]}  Kg6 {[%clk 0:00:08]} 36. Qf4 {[%clk 0:01:35]}  d4 {[%clk 0:00:09]} 37. exd4 {[%clk 0:01:32]}  Qe1+ {[%clk 0:00:08]} 38. Bf1 {[%clk 0:01:32]}  e3 {[%clk 0:00:08]} 39. Ra6 {[%clk 0:01:31]}  e2 {[%clk 0:00:06]} 40. Rxf6+ {[%clk 0:01:29]} 1-0


[Site "https://www.chess.com"]

[Event "Titled Tuesday Blitz October 04 Late 2022"]
[White "Ekdyshman, Mikhail"]
[Black "Zierk, Steven"]
[WhiteFideId "4149416"]
[BlackFideId "2034255"]
[WhiteElo "2164"]
[BlackElo "2494"]
[Result "0-1"]
[Round "01"]
[TimeControl "180+1"]
[Date "2022.10.04"]
[WhiteClock "0:00:07"]
[BlackClock "0:00:22"]

1. d4 {[%clk 0:02:53]}  Nf6 {[%clk 0:03:00]} 2. Nc3 {[%clk 0:02:53]}  d5 {[%clk 0:02:59]} 3. Bg5 {[%clk 0:02:53]}  Nbd7 {[%clk 0:02:58]} 4. Qd3 {[%clk 0:02:53]}  c5 {[%clk 0:02:58]} 5. O-O-O {[%clk 0:02:52]}  c4 {[%clk 0:02:56]} 6. Qg3 {[%clk 0:02:51]}  b5 {[%clk 0:02:55]} 7. Nxb5 {[%clk 0:02:44]}  Qa5 {[%clk 0:02:28]} 8. Nc7+ {[%clk 0:02:43]}  Kd8 {[%clk 0:02:28]} 9. Nxa8 {[%clk 0:02:39]}  Ne4 {[%clk 0:02:28]} 10. Qf4 {[%clk 0:02:13]}  f6 {[%clk 0:01:57]} 11. Bh4 {[%clk 0:02:13]}  g5 {[%clk 0:01:57]} 12. Qc7+ {[%clk 0:02:11]}  Qxc7 {[%clk 0:01:57]} 13. Nxc7 {[%clk 0:02:12]}  gxh4 {[%clk 0:01:57]} 14. Ne6+ {[%clk 0:02:03]}  Ke8 {[%clk 0:01:57]} 15. Nh3 {[%clk 0:02:02]}  Nb6 {[%clk 0:01:57]} 16. Nxf8 {[%clk 0:01:58]}  Bxh3 {[%clk 0:01:56]} 17. gxh3 {[%clk 0:01:55]}  Nxf2 {[%clk 0:01:33]} 18. Ne6 {[%clk 0:01:52]}  Nxh1 {[%clk 0:01:30]} 19. Bg2 {[%clk 0:01:45]}  Nf2 {[%clk 0:01:30]} 20. Rf1 {[%clk 0:01:42]}  Ne4 {[%clk 0:01:28]} 21. Nc7+ {[%clk 0:01:35]}  Kd7 {[%clk 0:01:23]} 22. Nxd5 {[%clk 0:01:35]}  Nd6 {[%clk 0:01:23]} 23. Ne3 {[%clk 0:01:29]}  c3 {[%clk 0:01:11]} 24. bxc3 {[%clk 0:01:24]}  Rc8 {[%clk 0:01:06]} 25. Nd1 {[%clk 0:01:08]}  Na4 {[%clk 0:00:54]} 26. Rf3 {[%clk 0:01:03]}  Ne4 {[%clk 0:00:48]} 27. Re3 {[%clk 0:00:35]}  Nexc3 {[%clk 0:00:46]} 28. Nxc3 {[%clk 0:00:34]}  Nxc3 {[%clk 0:00:47]} 29. Kd2 {[%clk 0:00:30]}  Nb5 {[%clk 0:00:42]} 30. c3 {[%clk 0:00:20]}  Nd6 {[%clk 0:00:41]} 31. Bd5 {[%clk 0:00:18]}  Rb8 {[%clk 0:00:39]} 32. Bb3 {[%clk 0:00:17]}  a5 {[%clk 0:00:36]} 33. Kc2 {[%clk 0:00:18]}  Kd8 {[%clk 0:00:29]} 34. Rf3 {[%clk 0:00:17]}  Rb5 {[%clk 0:00:29]} 35. Rf4 {[%clk 0:00:16]}  Rg5 {[%clk 0:00:26]} 36. Rxh4 {[%clk 0:00:14]}  h5 {[%clk 0:00:26]} 37. Kd3 {[%clk 0:00:11]}  e5 {[%clk 0:00:24]} 38. c4 {[%clk 0:00:10]}  Nf5 {[%clk 0:00:23]} 39. Re4 {[%clk 0:00:08]}  Nxd4 {[%clk 0:00:23]} 40. Ba4 {[%clk 0:00:08]}  Ne6 {[%clk 0:00:22]} 41. Kc3 {[%clk 0:00:03]}  Nc5 {[%clk 0:00:22]} 42. Re3 {[%clk 0:00:03]}  Nxa4+ {[%clk 0:00:22]} 43. Kc2 {[%clk 0:00:04]}  Nc5 {[%clk 0:00:21]} 44. Ra3 {[%clk 0:00:03]}  a4 {[%clk 0:00:22]} 45. Re3 {[%clk 0:00:03]}  Rg2 {[%clk 0:00:21]} 46. Kc3 {[%clk 0:00:04]}  Kc7 {[%clk 0:00:20]} 47. Kb4 {[%clk 0:00:05]}  Kd6 {[%clk 0:00:20]} 48. Rf3 {[%clk 0:00:05]}  Ne4 {[%clk 0:00:20]} 49. Rd3+ {[%clk 0:00:05]}  Ke6 {[%clk 0:00:20]} 50. Re3 {[%clk 0:00:05]}  f5 {[%clk 0:00:20]} 51. c5 {[%clk 0:00:05]}  Rg1 {[%clk 0:00:19]} 52. c6 {[%clk 0:00:04]}  Rc1 {[%clk 0:00:17]} 53. Kb5 {[%clk 0:00:03]}  Nd6+ {[%clk 0:00:17]} 54. Kxa4 {[%clk 0:00:02]}  Rxc6 {[%clk 0:00:17]} 55. Kb3 {[%clk 0:00:02]}  Rc4 {[%clk 0:00:16]} 56. Rd3 {[%clk 0:00:02]}  Re4 {[%clk 0:00:16]} 57. Rd2 {[%clk 0:00:02]}  Nc4 {[%clk 0:00:16]} 58. Rc2 {[%clk 0:00:02]}  Kd5 {[%clk 0:00:16]} 59. Rc1 {[%clk 0:00:03]}  Re3+ {[%clk 0:00:16]} 60. Kb4 {[%clk 0:00:03]}  Nd2 {[%clk 0:00:16]} 61. Rd1 {[%clk 0:00:03]}  Rxe2 {[%clk 0:00:17]} 62. Kc3 {[%clk 0:00:04]}  Rxh2 {[%clk 0:00:17]} 63. Rxd2+ {[%clk 0:00:04]}  Rxd2 {[%clk 0:00:17]} 64. Kxd2 {[%clk 0:00:05]}  f4 {[%clk 0:00:18]} 65. Kd3 {[%clk 0:00:05]}  e4+ {[%clk 0:00:18]} 66. Kc3 {[%clk 0:00:06]}  f3 {[%clk 0:00:18]} 67. Kd2 {[%clk 0:00:07]}  Kd4 {[%clk 0:00:19]} 68. a4 {[%clk 0:00:07]}  e3+ {[%clk 0:00:20]} 69. Ke1 {[%clk 0:00:07]}  Kd3 {[%clk 0:00:19]} 70. a5 {[%clk 0:00:07]}  e2 {[%clk 0:00:20]} 71. Kf2 {[%clk 0:00:06]}  Kd2 {[%clk 0:00:20]} 72. Kxf3 {[%clk 0:00:06]}  e1=Q {[%clk 0:00:21]} 73. Kf4 {[%clk 0:00:07]}  Qe3+ {[%clk 0:00:22]} 0-1


[Site "https://www.chess.com"]

[Event "Titled Tuesday Blitz October 04 Late 2022"]
[White "Holt, Conrad"]
[Black "Przybylski, Wojciech"]
[WhiteFideId "2034387"]
[BlackFideId "1117599"]
[WhiteElo "2592"]
[BlackElo "2221"]
[Result "0-1"]
[Round "01"]
[TimeControl "180+1"]
[Date "2022.10.04"]
[WhiteClock "0:00:01"]
[BlackClock "0:00:09"]

1. d4 {[%clk 0:02:50]}  Nf6 {[%clk 0:02:59]} 2. c4 {[%clk 0:02:50]}  e6 {[%clk 0:02:59]} 3. Nc3 {[%clk 0:02:50]}  Bb4 {[%clk 0:02:58]} 4. Qc2 {[%clk 0:02:51]}  d5 {[%clk 0:02:58]} 5. cxd5 {[%clk 0:02:50]}  Qxd5 {[%clk 0:02:58]} 6. Nf3 {[%clk 0:02:50]}  Qf5 {[%clk 0:02:57]} 7. Qxf5 {[%clk 0:02:49]}  exf5 {[%clk 0:02:57]} 8. Bd2 {[%clk 0:02:49]}  c6 {[%clk 0:02:52]} 9. e3 {[%clk 0:02:49]}  Be6 {[%clk 0:02:50]} 10. Bd3 {[%clk 0:02:49]}  Nbd7 {[%clk 0:02:48]} 11. Ke2 {[%clk 0:02:46]}  h6 {[%clk 0:02:47]} 12. Rhc1 {[%clk 0:02:45]}  Ke7 {[%clk 0:02:43]} 13. Na4 {[%clk 0:02:39]}  Bd6 {[%clk 0:02:36]} 14. b4 {[%clk 0:02:39]}  Rac8 {[%clk 0:02:29]} 15. Nc5 {[%clk 0:02:35]}  Rc7 {[%clk 0:02:14]} 16. a4 {[%clk 0:02:29]}  Nd5 {[%clk 0:02:08]} 17. Nxe6 {[%clk 0:02:18]}  fxe6 {[%clk 0:02:05]} 18. b5 {[%clk 0:02:19]}  Rhc8 {[%clk 0:01:58]} 19. bxc6 {[%clk 0:02:15]}  Rxc6 {[%clk 0:01:58]} 20. Rxc6 {[%clk 0:02:02]}  Rxc6 {[%clk 0:01:57]} 21. Rb1 {[%clk 0:01:57]}  Rc7 {[%clk 0:01:49]} 22. Rb3 {[%clk 0:01:45]}  g5 {[%clk 0:01:39]} 23. h3 {[%clk 0:01:41]}  Kf6 {[%clk 0:01:34]} 24. g4 {[%clk 0:01:20]}  fxg4 {[%clk 0:01:28]} 25. hxg4 {[%clk 0:01:20]}  Ke7 {[%clk 0:01:24]} 26. Ne1 {[%clk 0:01:16]}  e5 {[%clk 0:01:19]} 27. dxe5 {[%clk 0:01:13]}  Nxe5 {[%clk 0:01:18]} 28. Be4 {[%clk 0:01:13]}  Nb6 {[%clk 0:01:08]} 29. Ba5 {[%clk 0:00:51]}  Rc4 {[%clk 0:00:50]} 30. Bxb6 {[%clk 0:00:48]}  axb6 {[%clk 0:00:48]} 31. f3 {[%clk 0:00:32]}  Bc7 {[%clk 0:00:39]} 32. Ra3 {[%clk 0:00:23]}  Rb4 {[%clk 0:00:36]} 33. Ra2 {[%clk 0:00:13]}  Rb3 {[%clk 0:00:19]} 34. Nc2 {[%clk 0:00:07]}  Nc6 {[%clk 0:00:17]} 35. Ra3 {[%clk 0:00:01]}  Rb2 {[%clk 0:00:16]} 36. Kd1 {[%clk 0:00:02]}  Rb1+ {[%clk 0:00:11]} 37. Kd2 {[%clk 0:00:02]}  Bd6 {[%clk 0:00:12]} 38. Rd3 {[%clk 0:00:01]}  Bc5 {[%clk 0:00:09]} 0-1


[Site "https://www.chess.com"]

[Event "Titled Tuesday Blitz October 04 Late 2022"]
[White "Kollars, Dmitrij"]
[Black "Tan, Ralph"]
[WhiteFideId "12909572"]
[BlackFideId "30966590"]
[WhiteElo "2584"]
[BlackElo "2059"]
[Result "1-0"]
[Round "01"]
[TimeControl "180+1"]
[Date "2022.10.04"]
[WhiteClock "0:00:52"]
[BlackClock "0:00:23"]

1. e4 {[%clk 0:03:00]}  e6 {[%clk 0:03:00]} 2. d4 {[%clk 0:03:00]}  d5 {[%clk 0:03:00]} 3. exd5 {[%clk 0:03:00]}  exd5 {[%clk 0:03:01]} 4. Nf3 {[%clk 0:03:00]}  Bd6 {[%clk 0:03:01]} 5. c4 {[%clk 0:03:00]}  c6 {[%clk 0:03:00]} 6. Nc3 {[%clk 0:02:59]}  Ne7 {[%clk 0:03:00]} 7. c5 {[%clk 0:02:54]}  Bc7 {[%clk 0:02:59]} 8. Bd3 {[%clk 0:02:55]}  O-O {[%clk 0:02:55]} 9. O-O {[%clk 0:02:53]}  Bf5 {[%clk 0:02:55]} 10. b4 {[%clk 0:02:50]}  Nd7 {[%clk 0:02:53]} 11. Bg5 {[%clk 0:02:50]}  f6 {[%clk 0:02:53]} 12. Bh4 {[%clk 0:02:49]}  Re8 {[%clk 0:02:43]} 13. a4 {[%clk 0:02:44]}  a6 {[%clk 0:02:40]} 14. Re1 {[%clk 0:02:41]}  Bxd3 {[%clk 0:02:33]} 15. Qxd3 {[%clk 0:02:42]}  Ng6 {[%clk 0:02:32]} 16. Bg3 {[%clk 0:02:40]}  Bf4 {[%clk 0:02:23]} 17. Qf5 {[%clk 0:02:34]}  Bxg3 {[%clk 0:02:11]} 18. hxg3 {[%clk 0:02:35]}  Ndf8 {[%clk 0:02:08]} 19. g4 {[%clk 0:02:30]}  Qd7 {[%clk 0:02:05]} 20. b5 {[%clk 0:02:28]}  axb5 {[%clk 0:02:02]} 21. axb5 {[%clk 0:02:28]}  Rxa1 {[%clk 0:02:01]} 22. Rxa1 {[%clk 0:02:28]}  cxb5 {[%clk 0:01:47]} 23. Qxd7 {[%clk 0:02:26]}  Nxd7 {[%clk 0:01:48]} 24. Nxd5 {[%clk 0:02:27]}  Ne7 {[%clk 0:01:39]} 25. Nc7 {[%clk 0:02:25]}  Rc8 {[%clk 0:01:34]} 26. Nxb5 {[%clk 0:02:25]}  Nc6 {[%clk 0:01:21]} 27. Nd6 {[%clk 0:02:21]}  Rb8 {[%clk 0:01:21]} 28. Rb1 {[%clk 0:02:21]}  Na5 {[%clk 0:01:11]} 29. Rb5 {[%clk 0:02:15]}  b6 {[%clk 0:01:05]} 30. Nd2 {[%clk 0:01:54]}  Nc6 {[%clk 0:00:55]} 31. Nb3 {[%clk 0:01:52]}  bxc5 {[%clk 0:00:49]} 32. Rxb8+ {[%clk 0:01:53]}  Ncxb8 {[%clk 0:00:47]} 33. dxc5 {[%clk 0:01:54]}  Kf8 {[%clk 0:00:45]} 34. f3 {[%clk 0:01:53]}  Ke7 {[%clk 0:00:45]} 35. Nf5+ {[%clk 0:01:50]}  Kf7 {[%clk 0:00:45]} 36. Kf2 {[%clk 0:01:50]}  g6 {[%clk 0:00:45]} 37. Nd6+ {[%clk 0:01:49]}  Ke6 {[%clk 0:00:45]} 38. Ne4 {[%clk 0:01:48]}  Nc6 {[%clk 0:00:42]} 39. Ke3 {[%clk 0:01:47]}  Nde5 {[%clk 0:00:41]} 40. Nd4+ {[%clk 0:01:46]}  Kd5 {[%clk 0:00:39]} 41. Nxf6+ {[%clk 0:01:42]}  Kxc5 {[%clk 0:00:38]} 42. Nxc6 {[%clk 0:01:43]}  Kxc6 {[%clk 0:00:38]} 43. Nxh7 {[%clk 0:01:44]}  Kd6 {[%clk 0:00:38]} 44. Kf4 {[%clk 0:01:41]}  Ke6 {[%clk 0:00:37]} 45. Ng5+ {[%clk 0:01:40]}  Kf6 {[%clk 0:00:38]} 46. Ne4+ {[%clk 0:01:40]}  Ke6 {[%clk 0:00:38]} 47. Kg5 {[%clk 0:01:39]}  Kf7 {[%clk 0:00:36]} 48. Nd6+ {[%clk 0:01:39]}  Kg7 {[%clk 0:00:36]} 49. Kf4 {[%clk 0:01:35]}  Nd7 {[%clk 0:00:35]} 50. g5 {[%clk 0:01:34]}  Nc5 {[%clk 0:00:35]} 51. Ke3 {[%clk 0:01:33]}  Ne6 {[%clk 0:00:34]} 52. f4 {[%clk 0:01:32]}  Nc5 {[%clk 0:00:32]} 53. Ne4 {[%clk 0:01:31]}  Ne6 {[%clk 0:00:32]} 54. g4 {[%clk 0:01:30]}  Nc7 {[%clk 0:00:32]} 55. Kd4 {[%clk 0:01:28]}  Ne6+ {[%clk 0:00:32]} 56. Ke5 {[%clk 0:01:27]}  Nd8 {[%clk 0:00:32]} 57. f5 {[%clk 0:01:27]}  Nf7+ {[%clk 0:00:31]} 58. Ke6 {[%clk 0:01:25]}  gxf5 {[%clk 0:00:31]} 59. gxf5 {[%clk 0:01:26]}  Nd8+ {[%clk 0:00:30]} 60. Kd7 {[%clk 0:01:26]}  Nf7 {[%clk 0:00:30]} 61. Ke7 {[%clk 0:01:25]}  Ne5 {[%clk 0:00:29]} 62. Ke6 {[%clk 0:01:20]}  Ng4 {[%clk 0:00:29]} 63. Nd6 {[%clk 0:01:15]}  Ne3 {[%clk 0:00:22]} 64. f6+ {[%clk 0:01:05]}  Kf8 {[%clk 0:00:22]} 65. g6 {[%clk 0:01:04]}  Ng4 {[%clk 0:00:18]} 66. Nf5 {[%clk 0:01:03]}  Nh6 {[%clk 0:00:17]} 67. Nxh6 {[%clk 0:00:58]}  Ke8 {[%clk 0:00:18]} 68. g7 {[%clk 0:00:57]}  Kd8 {[%clk 0:00:17]} 69. f7 {[%clk 0:00:57]}  Kc7 {[%clk 0:00:18]} 70. f8=Q {[%clk 0:00:56]}  Kb6 {[%clk 0:00:19]} 71. Qd6+ {[%clk 0:00:55]}  Ka5 {[%clk 0:00:20]} 72. Qc7+ {[%clk 0:00:55]}  Ka4 {[%clk 0:00:21]} 73. Qb6 {[%clk 0:00:54]}  Ka3 {[%clk 0:00:22]} 74. g8=Q {[%clk 0:00:52]}  Ka2 {[%clk 0:00:23]} 75. Qa8# {[%clk 0:00:52]} 1-0


[Site "https://www.chess.com"]

[Event "Titled Tuesday Blitz October 04 Late 2022"]
[White "Kravtsiv, Martyn"]
[Black "Fiorito, Francisco"]
[WhiteFideId "14113147"]
[BlackFideId "180165"]
[WhiteElo "2694"]
[BlackElo "2204"]
[Result "1-0"]
[Round "01"]
[TimeControl "180+1"]
[Date "2022.10.04"]
[WhiteClock "0:00:32"]
[BlackClock "0:00:06"]

1. e4 {[%clk 0:03:00]}  c5 {[%clk 0:02:59]} 2. Nf3 {[%clk 0:03:01]}  Nc6 {[%clk 0:03:00]} 3. d4 {[%clk 0:03:00]}  cxd4 {[%clk 0:03:00]} 4. Nxd4 {[%clk 0:03:00]}  g6 {[%clk 0:03:01]} 5. Nc3 {[%clk 0:03:00]}  Bg7 {[%clk 0:03:01]} 6. Be3 {[%clk 0:03:00]}  Nf6 {[%clk 0:03:01]} 7. Bc4 {[%clk 0:03:00]}  O-O {[%clk 0:03:01]} 8. Bb3 {[%clk 0:03:00]}  Re8 {[%clk 0:03:01]} 9. O-O {[%clk 0:02:52]}  d6 {[%clk 0:03:01]} 10. h3 {[%clk 0:02:49]}  Na5 {[%clk 0:03:00]} 11. Qe2 {[%clk 0:02:34]}  b6 {[%clk 0:02:51]} 12. Ba4 {[%clk 0:02:29]}  Bd7 {[%clk 0:02:48]} 13. b4 {[%clk 0:02:24]}  Bxa4 {[%clk 0:02:42]} 14. Nxa4 {[%clk 0:02:23]}  Nb7 {[%clk 0:02:42]} 15. f3 {[%clk 0:02:12]}  Qd7 {[%clk 0:02:37]} 16. b5 {[%clk 0:02:09]}  Na5 {[%clk 0:02:27]} 17. Nb3 {[%clk 0:02:00]}  Nxb3 {[%clk 0:02:22]} 18. axb3 {[%clk 0:02:01]}  Rec8 {[%clk 0:02:16]} 19. Rad1 {[%clk 0:01:56]}  Qc7 {[%clk 0:02:15]} 20. c4 {[%clk 0:01:56]}  Nd7 {[%clk 0:02:13]} 21. f4 {[%clk 0:01:48]}  a6 {[%clk 0:02:08]} 22. bxa6 {[%clk 0:01:46]}  Rxa6 {[%clk 0:02:09]} 23. f5 {[%clk 0:01:46]}  Nc5 {[%clk 0:01:59]} 24. fxg6 {[%clk 0:01:35]}  hxg6 {[%clk 0:01:56]} 25. Qf3 {[%clk 0:01:35]}  Rf8 {[%clk 0:01:49]} 26. Nxc5 {[%clk 0:01:28]}  bxc5 {[%clk 0:01:49]} 27. h4 {[%clk 0:01:26]}  Ra3 {[%clk 0:01:45]} 28. Rd3 {[%clk 0:01:26]}  Qb7 {[%clk 0:01:43]} 29. Bc1 {[%clk 0:01:22]}  Ra2 {[%clk 0:01:39]} 30. h5 {[%clk 0:01:21]}  gxh5 {[%clk 0:01:39]} 31. Qxh5 {[%clk 0:01:21]}  Qxe4 {[%clk 0:01:22]} 32. Rg3 {[%clk 0:01:17]}  f5 {[%clk 0:01:15]} 33. Bh6 {[%clk 0:00:59]}  Qd4+ {[%clk 0:00:38]} 34. Kh1 {[%clk 0:00:58]}  e6 {[%clk 0:00:17]} 35. Rxg7+ {[%clk 0:00:54]}  Qxg7 {[%clk 0:00:18]} 36. Bxg7 {[%clk 0:00:54]}  Kxg7 {[%clk 0:00:19]} 37. Qg5+ {[%clk 0:00:52]}  Kf7 {[%clk 0:00:19]} 38. Qh5+ {[%clk 0:00:46]}  Ke7 {[%clk 0:00:19]} 39. Qh7+ {[%clk 0:00:42]}  Rf7 {[%clk 0:00:19]} 40. Qh4+ {[%clk 0:00:43]}  Kd7 {[%clk 0:00:17]} 41. Rd1 {[%clk 0:00:43]}  Ra6 {[%clk 0:00:17]} 42. b4 {[%clk 0:00:37]}  cxb4 {[%clk 0:00:16]} 43. c5 {[%clk 0:00:38]}  d5 {[%clk 0:00:06]} 44. Qxb4 {[%clk 0:00:37]}  Rc6 {[%clk 0:00:06]} 45. Ra1 {[%clk 0:00:34]}  e5 {[%clk 0:00:05]} 46. Qb7+ {[%clk 0:00:32]}  Rc7 {[%clk 0:00:06]} 47. Qxd5+ {[%clk 0:00:32]} 1-0


[Site "https://www.chess.com"]